Cogmind - Beta 14 @@@ ROGUE MODE // 2024.09.05 @ 20:48:16 Player: JohnnyDongs Result: Destroyed by D-53 Grenadier with Mini Grenade Launcher Performance ------------- Evolutions (0) 0 Regions Visited (2) 400 Robots Destroyed (23) 115 Value Destroyed (624) 624 Prototype IDs (0) 0 Alien Tech Used (0) 0 Bonus (0) 0 TOTAL SCORE: 1139 Bonus ------- None Cogmind --------- Core Integrity 0/250 Matter 300/300 Energy 98/100 System Corruption 1% Temperature Cool (1) Movement Walking (190) Ox1 Location -10/Mines Parts ------- > --- POWER (1) -------- (None) > --- PROPULSION (2) --- Improved Aluminum Leg > --- UTILITY (2) ------ Heat Sink Large Storage Unit > --- WEAPON (2) ------- (None) > --- INVENTORY (15) --- Ion Engine Light Treads High-capacity Matter Pod (200) Improved Terrain Scanner EM Pulse Gun EM Pulse Gun EM Pulse Gun EM Pulse Gun Beam Cannon Beam Cannon Beam Cannon Rocket Launcher Mining Laser Plasma Cutter Peak State ------------ > --- POWER ------------ Ion Engine > --- PROPULSION ------- Light Treads Light Treads > --- UTILITY ---------- Improved Heat Sink Small Storage Unit > --- WEAPON ----------- EM Pulse Gun EM Pulse Gun > --- INVENTORY -------- Light Ion Engine Aluminum Leg Aluminum Leg High-capacity Matter Pod Improved Terrain Scanner EM Pulse Gun Small Laser Beam Cannon [Rating: 10] Favorites ----------- Power Ion Engine Engine Ion Engine Propulsion Aluminum Leg Treads Light Treads Leg Aluminum Leg Utility Large Storage Unit Device Heat Sink Storage Large Storage Unit Processor Signal Interpreter Weapon EM Pulse Gun Energy Gun EM Pulse Gun Ballistic Gun Light Assault Rifle Build | -11 -10 -10 ------- Run | Yrd Mat Min Slots Evolved . | . . . Power . | . . . Propulsion . | . . . Utility . | . . . Weapon . | . . . Parts Attached 25 | 8 17 . Power 3 | 2 1 . Engine 3 | 2 1 . Core . | . . . Reactor . | . . . Propulsion 8 | 2 6 . Treads 4 | 2 2 . Leg 4 | . 4 . Wheel . | . . . Hover . | . . . Flight . | . . . Utility 6 | 2 4 . Device 3 | 1 2 . Storage 2 | 1 1 . Processor 1 | . 1 . Hackware . | . . . Protection . | . . . Artifact . | . . . Weapon 8 | 2 6 . Energy Gun 5 | . 5 . Energy Cannon . | . . . Ballistic Gun 3 | 2 1 . Ballistic Cannon . | . . . Launcher . | . . . Special Weapon . | . . . Impact Weapon . | . . . Slashing Weapon . | . . . Piercing Weapon . | . . . Special Melee Weapon . | . . . Unidentified Prototypes . | . . . Parts Lost 8 | . 4 4 Power 1 | . . 1 Propulsion 3 | . 2 1 Utility 1 | . 1 . Weapon 3 | . 1 2 Highest Loss Streak 4 | . 2 4 To Critical Strikes . | . . . Average Slot Usage (%) 97 | . 97 96 Engine 13 | . 14 12 Treads 6 | . 7 . Leg 20 | . 20 28 Device 11 | . 11 14 Storage 14 | . 14 14 Energy Gun 22 | . 22 25 Ballistic Gun 4 | . 4 . Peak Build Rating 10 | 7 10 10 Average Rating 8 | 5 8 9 On Entrance 5 | . 7 10 Naked Turns . | . . . Heaviest Build 30 | 14 30 30 Greatest Support 40 | 40 40 26 Greatest Overweight (x) 4 | . 4 1 Average Overweight (x) . | . . . Largest Inventory Capacity 15 | 8 15 15 Average Capacity 12 | 7 12 15 Most Carried 15 | 5 15 14 Average Carried 9 | 2 9 14 Final Capacity 15 | 8 15 15 Final Carried 14 | 5 14 14 Class Distribution -------------------- 100% | Mutant Dominant Class ---------------- Mutant | -10/Materials Mutant | -10/Mines Resources | -11 -10 -10 ----------- Run | Yrd Mat Min Matter Collected 724 | 193 523 8 Remotely . | . . . Salvage Created 859 | 22 777 60 Parts 50 | 4 41 5 Haulers Intercepted . | . . . Recyclers Shooed 1 | . 1 . Parts Field Recycled . | . . . Retrieved Matter . | . . . Parts Self-Destructed . | . . . Prevented . | . . . Kills | -11 -10 -10 ------- Run | Yrd Mat Min Combat Hostiles Destroyed 20 | . 17 3 Guns 18 | . 15 3 AOE 2 | . 2 . Classes Destroyed 4 | 1 3 . Tunneler 1 | 1 . . Watcher 2 | . 2 . Swarmer 6 | . 3 3 Grunt 14 | . 14 . Best Kill Streak 4 | 1 4 3 Combat Bots Only 4 | . 4 3 Max Kills in Single Turn 2 | 1 2 1 Gunslinging . | . . . Exploded 1 | . 1 . Melee . | . . . Uniques/NPCs Destroyed . | . . . Combat | -11 -10 -10 -------- Run | Yrd Mat Min Hostile Shots Fired 103 | . 82 21 Missed 27 | . 21 6 Damage Taken 1325 | . 779 546 Core 281 | . 109 172 Absorbed by Shields . | . . . Core Remaining (%) 100 | 100 . . Volleys Fired 64 | 4 55 5 Largest 2 | 2 2 2 Hottest 80 | 40 80 80 Shots Fired 127 | 8 109 10 Gun 127 | 8 109 10 Cannon . | . . . Launcher . | . . . Special . | . . . Kinetic 48 | 8 40 . Thermal 7 | . 7 . Explosive . | . . . Electromagnetic 72 | . 62 10 Robot Hit Streak 14 | 6 14 5 Robot Miss Streak 4 | 1 4 . Penetration Max . | . . . Secondary Targets 3 | . 2 1 Max Gunslinging Chain 1 | . 1 1 Shots Hit Robots 85 | 6 75 4 Core Hits 42 | 2 36 4 Critical Kills . | . . . Critical Parts Destroyed . | . . . Critical Strikes . | . . . Melee Attacks . | . . . Impact . | . . . Slashing . | . . . Piercing . | . . . Sneak Attacks . | . . . Combat Hostiles . | . . . Follow-up Attacks . | . . . Damage Inflicted 1205 | 61 1079 65 Guns 1053 | 60 941 52 Cannons . | . . . Explosions 127 | . 127 . Melee . | . . . Ramming 25 | 1 11 13 Kinetic 417 | 60 357 . Thermal 185 | . 185 . Explosive . | . . . Electromagnetic 578 | . 526 52 Impact . | . . . Slashing . | . . . Piercing . | . . . Highest Corruption 1 | . 1 1 Average Corruption 1 | . 1 1 Corruption Purged . | . . . Corruption Blocked . | . . . Effects 4 | . 4 . Matter Fused 1 | . 1 . Energy Discharges 1 | . 1 . Data Loss (minor) 2 | . 2 . Overload Shots . | . . . Overflow Damage . | . . . Projectiles . | . . . Explosions . | . . . Melee . | . . . Knockbacks 1 | . 1 . Impact 1 | . 1 . Kinetic . | . . . Secondary . | . . . Self-Inflicted Damage . | . . . Shots . | . . . Rammed 1 | 1 . . Targets Rammed 6 | 1 2 3 Kicked 5 | . 2 3 Crushed . | . . . Highest Temperature 72 | . 72 . Average Temperature 20 | . 20 . Received Heat Transfer 441 | . 441 . Siege Activations . | . . . Robots Corrupted . | . . . Combat Hostiles . | . . . Parts Fried 2 | . 2 . Impact Corruptions . | . . . Robots Melted . | . . . Combat Hostiles . | . . . Parts Melted 1 | . 1 . Heat Transferred 325 | . 325 . Parts Sabotaged . | . . . Parts Stolen . | . . . Parts Stripped . | . . . Power Chain Reactions 3 | . 3 . Alert | -11 -10 -10 ------- Run | Yrd Mat Min Peak Influence 326 | 5 326 98 Initial 28 | . 3 28 Average 146 | 1 165 75 Maximum Alert Level 1 | . 1 . Low Security (%) 78 | 100 74 100 Level 1 21 | . 25 . Level 2 . | . . . Level 3 . | . . . Level 4 . | . . . Level 5 . | . . . High Security . | . . . Max Security . | . . . Squads Dispatched 4 | . 4 . Investigation 4 | . 4 . Extermination . | . . . Reinforcement . | . . . Assault . | . . . Garrison . | . . . Intercept . | . . . Searches Triggered . | . . . Construction Impeded . | . . . Haulers Reinforced . | . . . Active Scanning Responses . | . . . Cargo Convoy Interrupts . | . . . Stealth | -11 -10 -10 --------- Run | Yrd Mat Min Distress Signals 2 | . 2 . Communications Jammed . | . . . Distress Signals . | . . . Times Spotted 33 | . 28 5 Peak Tracking Total 6 | . 6 3 Tactical Retreats 1 | . 1 . Traps | -11 -10 -10 ------- Run | Yrd Mat Min Traps Triggered 3 | . 3 . Indirectly . | . . . Trap Hack Attempts . | . . . Triggered . | . . . Disarmed . | . . . Reprogrammed . | . . . Reused . | . . . Traps Extracted . | . . . Installed . | . . . Triggered . | . . . Machines | -11 -10 -10 ---------- Run | Yrd Mat Min Machines Disabled 1 | . 1 . Max in Single Turn 1 | . 1 . Machines Repaired . | . . . Machines Dismantled . | . . . Machines Sabotaged . | . . . Overloaded Fab Kills . | . . . Hacking | -11 -10 -10 --------- Run | Yrd Mat Min Machines Accessed 7 | . 7 . Terminals 6 | . 6 . Fabricators . | . . . Repair Stations 1 | . 1 . Recycling Units . | . . . Scanalyzers . | . . . Garrison Access . | . . . Total Hacks 23 | . 23 . Successful 3 | . 3 . Failed 19 | . 19 . Catastrophic 3 | . 3 . Database Lockouts 1 | . 1 . Manual 20 | . 20 . Terminals 20 | . 20 . Fabricators . | . . . Repair Stations 3 | . 3 . Recycling Units . | . . . Scanalyzers . | . . . Garrison Access . | . . . Terminal Hacks 2 | . 2 . Robot Analysis 2 | . 2 . Fabricator Hacks . | . . . Repair Station Hacks 1 | . 1 . Scan Component 1 | . 1 . Recycling Unit Hacks . | . . . Scanalyzer . | . . . Garrison Access Hacks . | . . . Unauthorized Hacks . | . . . Terminals . | . . . Fabricators . | . . . Repair Stations . | . . . Recycling Units . | . . . Scanalyzers . | . . . Garrison Access . | . . . Data Cores Recovered . | . . . Used . | . . . Hacking Detections 7 | . 7 . Full Trace Events 3 | . 3 . Feedback Events 1 | . 1 . Corruption 1 | . 1 . Feedback Blocked . | . . . Robot Schematics Acquired . | . . . Robots Built . | . . . Authchips . | . . . Time . | . . . Total Robot Build Rating . | . . . Part Schematics Acquired . | . . . Parts Built . | . . . Authchips . | . . . Time . | . . . Total Part Build Rating . | . . . Parts Repaired . | . . . Time . | . . . Parts Recycled . | . . . Recycled Matter . | . . . Retrieved Matter . | . . . Retrieved Components . | . . . Parts Scanalyzed . | . . . Part Schematics Acquired . | . . . Parts Damaged . | . . . Bothacking | -11 -10 -10 ------------ Run | Yrd Mat Min Used RIF Installer . | . . . Robots Hacked . | . . . Non-combat . | . . . Combat . | . . . Robot Hacks Applied . | . . . Relay Couplers Released . | . . . Fabnet Peak Effective % . | . . . Robots Rewired . | . . . Allies Hacked . | . . . Hacks Repelled . | . . . Allies | -11 -10 -10 -------- Run | Yrd Mat Min Total Allies . | . . . Largest Group . | . . . Highest-Rated Group . | . . . Highest-Rated Ally . | . . . Total Orders . | . . . Ally Attacks . | . . . Total Damage . | . . . Kills . | . . . Allies Corrupted . | . . . Allies Melted . | . . . Intel | -11 -10 -10 ------- Run | Yrd Mat Min Robot Analysis Total 2 | . 2 . Derelict Logs Recovered 1 | . . 1 Drone Launches . | . . . Drone Recoveries . | . . . Exploration | -11 -10 -10 ------------- Run | Yrd Mat Min Turns Passed 1540 | 115 1311 114 Spaces Moved 721 | 56 613 52 Core 7 | 3 4 . Treads 196 | 53 143 . Legs 518 | . 466 52 Wheels . | . . . Hover . | . . . Flight . | . . . Fastest Speed 50 | 50 120 120 Average Speed 177 | 154 179 181 Slowest Speed 250 | 160 250 190 Overloaded Moves . | . . . Propulsion Burnouts . | . . . Robots Hopped . | . . . Cave-ins Triggered . | . . . Exploration Rate (%) 36 | 4 85 19 Regions Visited 2 Branch Regions 1 Pre-discovered Areas . | . . . Known Exits Taken 1 | . 1 . Unknown Exits Taken 1 | 1 . . Scrap Searched . | . . . Spaces Dug . | . . . Terrain Destroyed 13 | . 13 . Melee . | . . . Projectile . | . . . AOE 13 | . 13 . Terrain Rammed . | . . . Walls Destroyed . | . . . Machines Disabled . | . . . Actions | -11 -10 -10 --------- Run | Yrd Mat Min Total 853 | 73 720 60 Wait 9 | 1 8 . Move 719 | 55 612 52 Hop . | . . . Pick Up 19 | 4 15 . Fast Attach 15 | 7 8 . Attach 5 | . 5 . Detach . | . . . Swap 5 | 1 4 . Drop 11 | . 11 . Fire 64 | 4 55 5 Melee . | . . . Ram . | . . . Kick 5 | . 2 3 Crush 1 | 1 . . Escape Stasis . | . . . Rewire . | . . . Trap . | . . . Miscellaneous . | . . . Route ------- -11/Scrapyard -10/Materials (discovered 4 exits: *Mat x3 / *Min) -10/Mines (discovered 1 exit: *Mat) History --------- Turn | Location | Event 2 | -11/Scrapyard | Met Revision 17 20 | -11/Scrapyard | Discovered new exit (range 14) 116 | -11/Scrapyard | Entered Materials 311 | -10/Materials | Build established: Mutant 502 | -10/Materials | Discovered new exit (range 13) 738 | -10/Materials | Discovered new exit (range 4) 747 | -10/Materials | Identified exit to Materials 814 | -10/Materials | Discovered new exit (range 12) 837 | -10/Materials | Identified exit to Mines 1156 | -10/Materials | Central database locked down 1226 | -10/Materials | Discovered exit to Materials (range 5) 1427 | -10/Materials | Entered Mines 1454 | -10/Mines | Discovered exit to Materials (range 11) 1481 | -10/Mines | Assembled infested the area 1486 | -10/Mines | Assisted by a Guerilla fighting off Assembled 1527 | -10/Mines | Core integrity fell below 50% 1534 | -10/Mines | Core integrity fell below 20% 1541 | -10/Mines | Destroyed by D-53 Grenadier with Mini Grenade Launcher Last Messages --------------- dispatching Demolisher response squad. 01486_ A derelict emerges from the shadows: "You need to get out of here! I've been tracking a group of Assembled to figure out where they're coming from, and they're closing on this area, come on!" 01503_ Kicked T-07 Excavator out of the way. 01526_ C-30 ARC bursts open, deploying its payload. 01526_ D-53 Grenadier unfolds itself. 01527_ The unstable cave ceiling collapses. 01530_ EM Pulse Gun destroyed. 01532_ The unstable cave ceiling collapses. 01533_ EM Pulse Gun destroyed. 01534_ The unstable cave ceiling collapses. 01537_ Ion Engine destroyed. 01539_ The unstable cave ceiling collapses. 01539_ U-05 Engineer lays Concrete. 01540_ Imp. Aluminum Leg destroyed. 01541_ The unstable cave ceiling collapses. Map ----- +----------------------------------------------------+ | ?????????????????????????????????????????????????? | | ?????????????????????????????????????????????????? | | ?????????????????????????????????????????????????? | | ?????????????????????????????????????????????????? | | ?????????????????????????????????????????????????? | | ?????????????????????????????????????????????????? | | ?????????????????????????????????????????????????? | | ?????????????????????????????????????????????????? | | ?????????????????????????????????????????????????? | | ?????????????????????????????????????????????????? | | ?????????????????????????????????????????????????? | | ?????????????????????????????????????????????????? | | ?????????????????????????????????????????????????? | | ?????????????????????????????????????????????????? | | ?????????????????????????????????????????????????? | | ?????????????????????????????????????????????????? | | ?????????????????????????????????????????????????? | | ?????????????????????????????????????????????????? | | ????????????????????###??????????????????????????? | | ???????????????????## ##?????????????????????????? | | ????????????????#### < #####????????????????????? | | ??????????#?????# % # #????????????????????? | | ??????????#!????# ## #????????????????????? | | ??????????#%#??## # #????????????????????? | | ???????????= ## ##########????????????? | | ????????????# # @% =[* #????????????? | | ????????????# =%= #????????????? | | ???????????## # #%##### ###??????????? | | ???????????# # ### #??## #########??? | | ???????????# dd ###?# #?## ## ? | | ???????????## # # #???# #?# ? | | ????????????## # ##???# #?# | | ????????????# ##????# ### | | ???????????# ##?????# | | ????????? ##??????# ## | | ??????? ###???????# ## | | ?????# ## ##?????????# | | ?????# ??## ##??????????##### | | ????? ????####????????????????### | | ????# ???????????????????????????## # | | ????? ?????????????????????????????## ## | | ?????????????????????????????????????## ##? | | ???????????????????????????????????????# #? | | ???????????????????????????????????????? #? | | ????????????????????????????????????????? ## #? | | ?????????????????????????????????????????? ##?? #? | | ???????????????????????????????????????????#?????? | | ?????????????????????????????????????????????????? | | ?????????????????????????????????????????????????? | | ?????????????????????????????????????????????????? | +----------------------------------------------------+ Best States ------------- Heat Dissipation 39 Energy Generation 10 Energy Capacity 250 Matter Stores 300 Matter Capacity 300 Sight Range 16 Terrain Scan Density 10 Evasion (%) 55 Recoil Reduction 2 Item Schematics ----------------- None Robot Schematics ------------------ None Fabricated ------------ Nothing Alien Tech Used ----------------- None Achievements -------------- None Challenges ------------ None Game ------ Seed AerolevDecoyPower Manual? 0 Play Time 00:12:55 Cumulative 61.4 hours Start 2024.09.05 @ 20:33:00 End 2024.09.05 @ 20:48:16 Sessions 1 Manual Loads 0 Difficulty Rogue Special Mode None Game No. 38 Rogue 38 Adventurer 0 Explorer 0 Win Type - Total 0 Types 0/0/0/0/0/0/0/0/0 Lore% 21 Gallery% 44 Achievement% 39 Wizard Run 0 Options --------- Layout 1 ASCII 0 Keyboard 0 Movement Numpad Keybinds 0 Fullscreen 1 Font 24/Smallcaps Map View 50x35 Zoom Use 0% Tactical HUD 1 Map Filters NONE Filters NONE Steam 1 RUN: 73b041f3-69db-47ad-a656-5c8dc637e0d7